Cogmind - Beta 16 @@@ ROGUE MODE // 2025.10.22 @ 19:35:04 Player: Cheeseinator Result: Destroyed by X-57 Shotgunner with High-powered Shotgun Performance ------------- Evolutions (3) 1500 Regions Visited (6) 1200 Robots Destroyed (31) 155 Value Destroyed (517) 517 Prototype IDs (1) 20 Alien Tech Used (0) 0 Bonus (200) 200 TOTAL SCORE: 3592 Bonus ------- Entered Garrisons 200 Cogmind --------- Core Integrity 0/700 Matter 287/300 Energy 100/100 System Corruption 0% Temperature Cool (14) Movement Core (50) Location -7/Garrison Parts ------- > --- POWER (2) -------- (None) > --- PROPULSION (5) --- (None) > --- UTILITY (3) ------ (None) > --- WEAPON (3) ------- (None) > --- INVENTORY (5) ---- Light Nuclear Core Small Matter Pod (50) Peak State ------------ > --- POWER ------------ Light Deuterium Engine > --- PROPULSION ------- VTOL Module VTOL Module > --- UTILITY ---------- Weight Redist. System Visual Processing Unit Improved Terrain Scanner > --- WEAPON ----------- Autogun > --- INVENTORY -------- Light Nuclear Core Small Matter Pod [Rating: 16] Favorites ----------- Power Light Ion Engine Engine Light Ion Engine Propulsion Flight Unit Wheel Wheel Hover Unit Improved Hover Unit Flight Unit Flight Unit Utility Small Matter Pod Device Improved Terrain Scanner Storage Small Matter Pod Processor Visual Processing Unit Weapon Beam Cannon Energy Gun Medium Laser Energy Cannon Beam Cannon Ballistic Gun Light Assault Rifle Build | -11 -10 -9 -9 -8 -7 -7 ------- Run | Yrd Mat Mat Min Mat Fac Gar Slots Evolved 6 | . . 2 . 2 2 . Power 1 | . . . . 1 . . Propulsion 3 | . . 2 . 1 . . Utility 1 | . . . . . 1 . Weapon 1 | . . . . . 1 . Parts Attached 37 | 8 6 3 3 6 4 7 Power 8 | 1 2 . 1 3 . 1 Engine 8 | 1 2 . 1 3 . 1 Core . | . . . . . . . Reactor . | . . . . . . . Propulsion 16 | 2 2 3 2 3 . 4 Treads . | . . . . . . . Leg . | . . . . . . . Wheel 2 | 2 . . . . . . Hover 1 | . . . . 1 . . Flight 13 | . 2 3 2 2 . 4 Utility 6 | 3 . . . . 3 . Device 3 | 2 . . . . 1 . Storage 1 | 1 . . . . . . Processor 2 | . . . . . 2 . Hackware . | . . . . . . . Protection . | . . . . . . . Artifact . | . . . . . . . Weapon 7 | 2 2 . . . 1 2 Energy Gun 1 | . . . . . 1 . Energy Cannon 2 | . 2 . . . . . Ballistic Gun 4 | 2 . . . . . 2 Ballistic Cannon . | . . . . . . . Launcher . | . . . . . . . Special Weapon . | . . . . . . . Impact Weapon . | . . . . . . . Slashing Weapon . | . . . . . . . Piercing Weapon . | . . . . . . . Special Melee Weapon . | . . . . . . . Unidentified Prototypes 1 | . . 1 . . . . Parts Lost 24 | . 2 . . 6 . 16 Power 4 | . 1 . . . . 3 Propulsion 12 | . 1 . . 6 . 5 Utility 3 | . . . . . . 3 Weapon 5 | . . . . . . 5 Highest Loss Streak 8 | . 1 . . 3 . 8 To Critical Strikes . | . . . . . . . Average Backups 3 | 3 4 3 4 2 . 2 Power . | . . 1 1 1 . 1 Propulsion 1 | 2 2 1 2 . . . Utility . | . . . . . . 1 Weapon . | 1 1 1 1 1 . . Tool/Special . | . . . . . . . Unused Backups 6 | . 3 . 1 1 . 1 Power 1 | . . . . . . 1 Propulsion 3 | . 2 . . 1 . . Utility 1 | . . . 1 . . . Weapon 1 | . 1 . . . . . Tool/Special . | . . . . . . . Average Slot Usage (%) 81 | . 97 98 100 83 68 47 Engine 12 | . 13 11 11 14 15 6 Wheel 3 | . 12 . . . . . Hover 2 | . . . . 1 7 3 Flight 18 | . 14 42 44 31 . 7 Device 10 | . 14 11 11 9 7 7 Storage 8 | . 14 11 11 9 3 . Processor 3 | . . . . . 9 10 Energy Gun 1 | . . . . . 6 2 Energy Cannon 11 | . 5 22 22 18 15 4 Ballistic Gun 7 | . 22 . . . . 2 Peak Build Rating 16 | 9 9 13 13 15 15 16 Average Rating 10 | 5 8 11 13 13 13 11 On Entrance 9 | . 9 9 13 13 10 15 Avg Prop Armor Cover (%) 10 | . . . . 4 . 11 Naked Turns 4 | . . . . . . 4 Heaviest Build 16 | 7 11 11 11 14 16 14 Greatest Support 21 | 20 20 17 17 21 13 18 Greatest Overweight (x) 2 | . 2 . . 1 2 1 Average Overweight (x) . | . . . . . 1 . Largest Inventory Capacity 5 | 5 5 5 5 5 5 5 Average Capacity 5 | 5 5 5 5 5 5 5 Most Carried 5 | 5 5 4 5 5 3 4 Average Carried 3 | 3 4 3 4 2 . 2 Final Capacity 5 | 5 5 5 5 5 5 5 Final Carried 5 | 5 5 4 5 2 3 2 Class Distribution -------------------- 33% | Mutant 24% | Scavenger-Sprinter 23% | Scavenger-Mutant 10% | Scavenger-Skirmisher 8% | Scavenger-Gunner Dominant Class ---------------- Scavenger-Mutant | -10/Materials Scavenger-Sprinter | -9/Materials Scavenger-Sprinter | -9/Mines Scavenger-Sprinter | -8/Materials Scavenger-Skirmisher | -7/Factory Mutant | -7/Garrison Resources | -11 -10 -9 -9 -8 -7 -7 ----------- Run | Yrd Mat Mat Min Mat Fac Gar Matter Collected 783 | 374 73 . 116 165 . 55 Remotely . | . . . . . . . Salvage Created 820 | 167 148 16 153 307 . 29 Parts 62 | 11 16 3 11 19 . 2 Haulers Intercepted . | . . . . . . . Recyclers Shooed 1 | . 1 . . . . . Parts Field Recycled . | . . . . . . . Retrieved Matter . | . . . . . . . Parts Self-Destructed . | . . . . . . . Prevented . | . . . . . . . Parts Restored . | . . . . . . . Kills | -11 -10 -9 -9 -8 -7 -7 ------- Run | Yrd Mat Mat Min Mat Fac Gar Combat Hostiles Destroyed 21 | 1 8 . 4 7 . 1 Guns 9 | 1 8 . . . . . Cannons 11 | . . . 4 6 . 1 Classes Destroyed 7 | 3 2 . 1 1 . . Worker 1 | 1 . . . . . . Tunneler 4 | 4 . . . . . . Recycler 1 | . . . 1 . . . Watcher 4 | . 1 1 . 2 . . Swarmer 16 | . 8 . 4 3 . 1 Grunt 4 | 1 . . . 3 . . Sentry 1 | . . . . 1 . . Best Kill Streak 4 | 2 3 1 4 4 . 1 Combat Bots Only 4 | 1 3 . 4 3 . 1 Max Kills in Single Turn 1 | 1 1 1 1 1 . 1 Gunslinging . | . . . . . . . Exploded . | . . . . . . . Melee . | . . . . . . . Uniques/NPCs Destroyed . | . . . . . . . Combat | -11 -10 -9 -9 -8 -7 -7 -------- Run | Yrd Mat Mat Min Mat Fac Gar Hostile Shots Fired 351 | 4 52 1 17 45 . 232 Missed 163 | 3 14 1 8 10 . 127 Hits 188 | 1 38 . 9 35 . 105 Projectile 188 | 1 38 . 9 35 . 105 Critical Strikes 3 | . 1 . . 2 . . Damage Taken 2247 | 10 301 . 74 476 . 1386 Core 881 | . 60 . 21 95 . 705 Absorbed by Shields 36 | . . . . . . 36 Core Remaining (%) 88 | 100 76 . 94 82 . . Volleys Fired 122 | 22 40 5 19 23 1 12 Largest 3 | 2 2 2 2 2 3 3 Hottest 170 | 40 80 120 120 120 170 170 Shots Fired 225 | 44 80 10 24 46 3 18 Gun 136 | 44 79 . . . 1 12 Cannon 89 | . 1 10 24 46 2 6 Launcher . | . . . . . . . Special . | . . . . . . . Kinetic 130 | 44 79 . . . . 7 Thermal 95 | . 1 10 24 46 3 11 Explosive . | . . . . . . . Electromagnetic . | . . . . . . . Robot Hit Streak 8 | 8 5 2 4 7 . 5 Robot Miss Streak 5 | 2 4 4 5 3 3 3 Penetration Max . | . . . . . . . Secondary Targets 1 | . 1 . . . . . Max Gunslinging Chain 1 | . 1 . . . . . Shots Hit Robots 103 | 25 31 3 11 24 . 9 Core Hits 57 | 12 17 1 7 13 . 7 Critical Kills 2 | . . . . 2 . . Critical Parts Destroyed 1 | . 1 . . . . . Critical Strikes 3 | . 1 . . 2 . . Meltdown 2 | . . . . 2 . . Destroy 1 | . 1 . . . . . Melee Attacks . | . . . . . . . Impact . | . . . . . . . Slashing . | . . . . . . . Piercing . | . . . . . . . Sneak Attacks . | . . . . . . . Combat Hostiles . | . . . . . . . Follow-up Attacks . | . . . . . . . Damage Inflicted 1332 | 205 250 52 193 415 17 200 Guns 530 | 205 233 . . . . 92 Cannons 747 | . 17 52 193 415 17 53 Explosions . | . . . . . . . Melee . | . . . . . . . Ramming 55 | . . . . . . 55 Kinetic 493 | 205 233 . . . . 55 Thermal 784 | . 17 52 193 415 17 90 Explosive . | . . . . . . . Electromagnetic . | . . . . . . . Impact . | . . . . . . . Slashing . | . . . . . . . Piercing . | . . . . . . . Highest Corruption . | . . . . . . . Average Corruption . | . . . . . . . Corruption Purged . | . . . . . . . Corruption Blocked . | . . . . . . . Overload Shots . | . . . . . . . Overflow Damage . | . . . . . . . Projectiles . | . . . . . . . Explosions . | . . . . . . . Melee . | . . . . . . . Knockbacks . | . . . . . . . Impact . | . . . . . . . Kinetic . | . . . . . . . Secondary . | . . . . . . . Self-Inflicted Damage 24 | . . . . . . 24 Shots . | . . . . . . . Rammed 11 | . . . . . . 11 Targets Rammed 11 | . . . . . . 11 Kicked . | . . . . . . . Crushed . | . . . . . . . Highest Temperature 524 | 6 44 189 371 524 99 118 Average Temperature 146 | 6 6 75 158 200 53 54 Received Heat Transfer 281 | 6 . . . 189 . 86 Effects 9 | . . . . 9 . . Shutdowns 4 | . . . . 4 . . Energy Bleed 2 | . . . . 2 . . Matter Decay 1 | . . . . 1 . . Damage (major) 2 | . . . . 2 . . Siege Activations . | . . . . . . . Martial Activations . | . . . . . . . Shielding Activations . | . . . . . . . Robots Disrupted . | . . . . . . . Combat Hostiles . | . . . . . . . Robots Corrupted . | . . . . . . . Combat Hostiles . | . . . . . . . Parts Fried . | . . . . . . . Impact Corruptions . | . . . . . . . Robots Melted 2 | . . . . 2 . . Combat Hostiles 1 | . . . . 1 . . Parts Melted 3 | . . . . 3 . . Heat Transferred 1702 | . 37 111 407 888 37 222 Parts Sabotaged . | . . . . . . . Parts Stolen . | . . . . . . . Parts Stripped . | . . . . . . . Power Chain Reactions . | . . . . . . . Alert | -11 -10 -9 -9 -8 -7 -7 ------- Run | Yrd Mat Mat Min Mat Fac Gar Maximum Alert Level . | . . . . . . . Low Security (%) 100 | 100 100 100 100 100 100 100 Level 1 . | . . . . . . . Level 2 . | . . . . . . . Level 3 . | . . . . . . . Level 4 . | . . . . . . . Level 5 . | . . . . . . . High Security . | . . . . . . . Max Security . | . . . . . . . Peak Influence 190 | 20 70 7 85 190 77 115 Initial 77 | . . . . 25 77 2 Average 33 | 2 30 1 21 92 25 39 Influence Increases 888 | 45 197 7 120 320 14 185 Destroy 0b10 Robot/C 420 | 20 160 . 80 140 . 20 Destroy 0b10 Robot/NC 60 | 25 5 5 15 10 . . Destroy Leader 78 | . 32 2 10 34 . . Successful Hack 14 | . . . . . 14 . Destroy Structure 1 | . . . . 1 . . Partial Spotted 30 | . . . 15 15 . . Lose Combat Pursuer 285 | . . . . 120 . 165 Influence Decreases 843 | 45 196 8 55 215 180 144 Entered New Map 136 | . . 1 . 40 93 2 Time Decay 485 | 45 176 7 55 115 87 . Lost Part 222 | . 20 . . 60 . 142 Squads Dispatched 1 | . . 1 . . . . Investigation . | . . . . . . . Extermination . | . . . . . . . Reinforcement 1 | . . 1 . . . . Assault . | . . . . . . . Garrison . | . . . . . . . Intercept . | . . . . . . . Searches Triggered . | . . . . . . . Construction Impeded . | . . . . . . . Haulers Reinforced . | . . . . . . . Active Scanning Responses . | . . . . . . . Cargo Convoy Interrupts . | . . . . . . . Stealth | -11 -10 -9 -9 -8 -7 -7 --------- Run | Yrd Mat Mat Min Mat Fac Gar Distress Signals 7 | . 3 2 . 2 . . Communications Jammed . | . . . . . . . Distress Signals . | . . . . . . . Times Spotted 70 | 1 14 7 4 19 1 24 Peak Tracking Total 9 | 1 4 8 4 9 1 8 Tactical Retreats 8 | . . . . 3 . 5 Traps | -11 -10 -9 -9 -8 -7 -7 ------- Run | Yrd Mat Mat Min Mat Fac Gar Traps Triggered 2 | . 1 . . . . 1 Indirectly . | . . . . . . . Trap Hack Attempts . | . . . . . . . Triggered . | . . . . . . . Disarmed . | . . . . . . . Reprogrammed . | . . . . . . . Reused . | . . . . . . . Traps Extracted . | . . . . . . . Installed . | . . . . . . . Triggered . | . . . . . . . Machines | -11 -10 -9 -9 -8 -7 -7 ---------- Run | Yrd Mat Mat Min Mat Fac Gar Machines Disabled . | . . . . . . . Max in Single Turn . | . . . . . . . Machines Repaired . | . . . . . . . Machines Dismantled . | . . . . . . . Machines Sabotaged . | . . . . . . . Overloaded Fab Kills . | . . . . . . . Hacking | -11 -10 -9 -9 -8 -7 -7 --------- Run | Yrd Mat Mat Min Mat Fac Gar Machines Accessed 3 | . 1 . 1 . 1 . Terminals . | . . . . . . . Fabricators . | . . . . . . . Repair Stations . | . . . . . . . Recycling Units 1 | . 1 . . . . . Scanalyzers . | . . . . . . . Garrison Access 1 | . . . . . 1 . Total Hacks 7 | . 4 . 1 . 2 . Successful 4 | . 2 . 1 . 1 . Failed 3 | . 2 . . . 1 . Catastrophic . | . . . . . . . Database Lockouts . | . . . . . . . Manual . | . . . . . . . Terminals . | . . . . . . . Fabricators . | . . . . . . . Repair Stations . | . . . . . . . Recycling Units 4 | . 4 . . . . . Scanalyzers . | . . . . . . . Garrison Access 2 | . . . . . 2 . Terminal Hacks 1 | . . . 1 . . . Open Door 1 | . . . 1 . . . Fabricator Hacks . | . . . . . . . Repair Station Hacks . | . . . . . . . Recycling Unit Hacks 2 | . 2 . . . . . Process 2 | . 2 . . . . . Scanalyzer . | . . . . . . . Garrison Access Hacks 1 | . . . . . 1 . Unlock Access 1 | . . . . . 1 . Unauthorized Hacks . | . . . . . . . Terminals . | . . . . . . . Fabricators . | . . . . . . . Repair Stations . | . . . . . . . Recycling Units . | . . . . . . . Scanalyzers . | . . . . . . . Garrison Access . | . . . . . . . Data Cores Recovered . | . . . . . . . Used . | . . . . . . . Hacking Detections 2 | . 1 . . . 1 . Full Trace Events . | . . . . . . . Feedback Events . | . . . . . . . Feedback Blocked . | . . . . . . . Robot Schematics Acquired . | . . . . . . . Robots Built . | . . . . . . . Authchips . | . . . . . . . Time . | . . . . . . . Total Robot Build Rating . | . . . . . . . Part Schematics Acquired . | . . . . . . . Parts Built . | . . . . . . . Authchips . | . . . . . . . Time . | . . . . . . . Total Part Build Rating . | . . . . . . . Part Studies Acquired . | . . . . . . . Parts Repaired . | . . . . . . . Time . | . . . . . . . Parts Recycled . | . . . . . . . Recycled Matter 6 | . 6 . . . . . Retrieved Matter . | . . . . . . . Retrieved Components . | . . . . . . . Parts Scanalyzed . | . . . . . . . Part Schematics Acquired . | . . . . . . . Parts Damaged . | . . . . . . . Bothacking | -11 -10 -9 -9 -8 -7 -7 ------------ Run | Yrd Mat Mat Min Mat Fac Gar Used RIF Installer . | . . . . . . . Robots Hacked . | . . . . . . . Non-combat . | . . . . . . . Combat . | . . . . . . . Robot Hacks Applied . | . . . . . . . Relay Couplers Released . | . . . . . . . Fabnet Peak Effective % . | . . . . . . . Robots Rewired . | . . . . . . . Allies Hacked . | . . . . . . . Hacks Repelled . | . . . . . . . Allies | -11 -10 -9 -9 -8 -7 -7 -------- Run | Yrd Mat Mat Min Mat Fac Gar Total Allies . | . . . . . . . Largest Group . | . . . . . . . Highest-Rated Group . | . . . . . . . Highest-Rated Ally . | . . . . . . . Total Orders . | . . . . . . . Ally Attacks . | . . . . . . . Total Damage . | . . . . . . . Kills . | . . . . . . . Allies Corrupted . | . . . . . . . Allies Melted . | . . . . . . . Intel | -11 -10 -9 -9 -8 -7 -7 ------- Run | Yrd Mat Mat Min Mat Fac Gar Active Infowar (turns) 1439 | 49 432 66 161 246 268 217 Optics 485 | . . . . . 268 217 Terrain 1125 | 13 432 66 161 246 171 36 Seismic 36 | 36 . . . . . . Robot Analysis Total . | . . . . . . . Derelict Logs Recovered 1 | . . . 1 . . . Drone Launches . | . . . . . . . Drone Recoveries . | . . . . . . . Exploration | -11 -10 -9 -9 -8 -7 -7 ------------- Run | Yrd Mat Mat Min Mat Fac Gar Turns Passed 1707 | 264 432 66 161 246 268 270 Spaces Moved 1747 | 232 355 112 291 238 174 345 Core 105 | 20 1 . . . . 84 Treads . | . . . . . . . Legs . | . . . . . . . Wheels 354 | 212 142 . . . . . Hover 308 | . . . . 29 174 105 Flight 980 | . 212 112 291 209 . 156 Fastest Speed 28 | 50 37 31 31 28 120 29 Average Speed 64 | 77 79 31 31 41 146 52 Slowest Speed 180 | 80 150 31 31 120 180 120 Overloaded Moves . | . . . . . . . Propulsion Burnouts . | . . . . . . . Robots Hopped 14 | . 1 . 1 3 . 9 Potential Cave-ins . | . . . . . . . Cave-ins Triggered . | . . . . . . . Exploration Rate (%) 30 | 5 53 18 66 24 9 40 Regions Visited 6 Branch Regions 1 Pre-discovered Areas 2 | . . . 2 . . . Known Exits Taken 1 | . . . . . 1 . Unknown Exits Taken 5 | 1 1 1 1 1 . . Scrap Searched 1 | . . . 1 . . . Spaces Dug . | . . . . . . . Terrain Destroyed . | . . . . . . . Melee . | . . . . . . . Projectile . | . . . . . . . AOE . | . . . . . . . Terrain Rammed . | . . . . . . . Walls Destroyed . | . . . . . . . Machines Disabled . | . . . . . . . Actions | -11 -10 -9 -9 -8 -7 -7 --------- Run | Yrd Mat Mat Min Mat Fac Gar Total 2114 | 277 440 132 337 338 184 406 Wait 171 | 10 29 12 22 63 2 33 Move 1712 | 231 352 111 288 231 173 326 Hop 12 | . 1 . 1 3 . 7 Pick Up 14 | 5 3 1 1 1 2 1 Fast Attach 26 | 8 7 . . 4 1 6 Attach 11 | . . 2 . 4 3 2 Detach 6 | . . . . 3 2 1 Swap 6 | . 1 1 3 1 . . Drop 16 | 1 7 . 3 5 . . Fire 122 | 22 40 5 19 23 1 12 Melee . | . . . . . . . Ram 11 | . . . . . . 11 Kick . | . . . . . . . Crush . | . . . . . . . Escape Stasis 7 | . . . . . . 7 Rewire . | . . . . . . . Trap . | . . . . . . . Miscellaneous . | . . . . . . . Route ------- -11/Scrapyard -10/Materials (discovered 2 exits: [*Mat] / [*Min]) -9/Materials -9/Mines -8/Materials -7/Factory -7/Garrison (discovered 1 exit: [*Fac]) History --------- Turn | Location | Event 2 | -11/Scrapyard | Met Revision 17 122 | -11/Scrapyard | Discovered new exit (range 8) 265 | -11/Scrapyard | Entered Materials 311 | -10/Materials | Build established: Mutant 387 | -10/Materials | Discovered new exit (range 13) 680 | -10/Materials | Discovered new exit (range 16) 697 | -10/Materials | Entered another Materials area 697 | -9/Materials | Evolved 2 slots: Propulsion x2 758 | -9/Materials | Discovered new exit (range 9) 763 | -9/Materials | Entered Mines 767 | -9/Mines | Met a Derelict who couldn't figure out how to use a Trap Extractor 840 | -9/Mines | Learned location of Storage (-7) 866 | -9/Mines | Learned location of Zion (-6) 866 | -9/Mines | Discovered new exit (range 9) 924 | -9/Mines | Entered Materials 924 | -8/Materials | Evolved 2 slots: Power x1, Propulsion x1 1028 | -8/Materials | Build established: Scavenger-Sprinter 1059 | -8/Materials | Lost 3 parts (3n) 1152 | -8/Materials | Discovered new exit (range 15) 1170 | -8/Materials | Entered Factory 1170 | -7/Factory | Evolved 2 slots: Utility x1, Weapon x1 1419 | -7/Factory | Identified exit to Garrison 1438 | -7/Factory | Entered Garrison 1529 | -7/Garrison | Triggered checkpoint 1573 | -7/Garrison | Core integrity fell below 50% 1584 | -7/Garrison | Lost 7 parts (2p2n3w) 1604 | -7/Garrison | Triggered checkpoint 1660 | -7/Garrison | Triggered checkpoint 1670 | -7/Garrison | Discovered new exit (range 8) 1673 | -7/Garrison | Attempted to access garrison exit controls, blocked by remote lockdown 1696 | -7/Garrison | Core integrity fell below 20% 1708 | -7/Garrison | Destroyed by X-57 Shotgunner with High-powered Shotgun Last Messages --------------- 01682_ Visual Processing Unit destroyed. 01683_ S-27 Virus destroyed. 01684_ Acquired Autogun. 01685_ X-57 Shotgunner destroyed. 01687_ ALERT: Dispatching investigation squad to Factory. 01690_ VTOL Module destroyed. 01690_ Lgt. Deuterium Engine destroyed. 01691_ Weight Redist. System destroyed. 01700_ Autogun destroyed. 01701_ Triggered Stasis Trap. 01701_ A bubble of rippling energy engulfs the area. 01701_ Field strength at 94. 01702_ Field strength at 83. 01703_ Field strength at 74. 01704_ VTOL Module destroyed. 01704_ Field strength at 63. 01705_ Field strength at 57. 01706_ Field strength at 47. 01707_ Field strength at 41. 01708_ Field strength at 30. Map ----- +----------------------------------------------------+ | ???# ???????????????????????????????????????????? | | ??## ##""""######???????????????????????????????? | | ### ###?????????????????????????????? | | ? ??????????????????????????????? | | ? ??????????????????????????????? | | ??# ## ## #???????????????????????????????? | | ### ## ## #???????????????????????????????? | | # "???????????????????????????????? | | # "???????????????????????????????? | | # "???????????????????????????????? | | ? "???????????????????????????????? | | ??# ## ## #?????????????######????????????? | | ### ## ## ##########???""""""""#??????????? | | #???!!!!!"""#??????????? | | #?? ""#??????????? | | ??# ####### #? !"#??????????? | | ??## ## ## ##?? ??# ## !"#??????????? | | ???# ## ## #??? ??# !"#??????????? | | ???# ######## #??? ??# !"#??????????? | | ???# #??????# #??? ??# ## ""#??????????? | | ???# #??????# #??? ??# #?"!!!!!!"""#??????????? | | ???# #??????# #??# #?# #??"""""""""???????????? | | ???# #??????# #??# #?# #???########???????????? | | #### #??????# ####+### ##############?????????? | | % #??????# ^Y xx%[ = %*#?????????? | | #??????# @g != =%%#?????????? | | ####++#??????####### #T######b####### #?????????? | | ???????????????????# ###????????????# #?????????? | | ???????????????????# #??????????????# #?????????? | | ???????????????????# #??????#####???# #?????????? | | ???????????????????# #??????# #"#???# #?????????? | | ???????????????????# #??????# "#???# ###???????? | | ???????????????????# #??????# "#???# #???????? | | ???????????????????# #??????# "????# < #???????? | | ???????????????????# ######## #?????# #???????? | | ???????????????????# #?????######???????? | | ???????????????????###"""#### #??????????????????? | | ????????????????????????????# #??????????????????? | | ????????????????????????????# #??????????????????? | | ????????????????????????????# #??????????????????? | | ??????????????????????????### #??????????????????? | | ??????????????????????????# ###????????????????? | | ????????????????????####### #????????????????? | | ????????????????????#"""""# #????????????????? | | ????????????????????# "" "## # #????????????????? | | ????????????????????# "#### #????????????????? | | ????????????????????# #????????????????? | | ????????????????????#""" #????????????????? | | ????????????????????#" *"""#????????????????? | | ????????????????????#"" "#????????????????? | +----------------------------------------------------+ Best States ------------- Heat Dissipation 34 Energy Generation 15 Energy Capacity 150 Matter Stores 350 Matter Capacity 350 Sight Range 18 Terrain Scan Range 16 Terrain Scan Density 10 Additional Mass Support 6 Evasion (%) 64 Core Analysis 6 Item Schematics ----------------- None Robot Schematics ------------------ None Fabricated ------------ Nothing Repaired ---------- Nothing Studied --------- None Alien Tech Used ----------------- None Achievements -------------- Well Done Challenges ------------ None Game ------ Seed AdvancedProjectionAnalyzer Manual? 0 Play Time 00:23:12 Cumulative 19.2 hours Start 2025.10.22 @ 19:14:53 End 2025.10.22 @ 19:35:04 Sessions 1 Manual Loads 0 Difficulty Rogue Special Mode None Game No. 29 Rogue 12 Adventurer 16 Explorer 1 Win Type - Total 0 Types 0/0/0/0/0/0/0/0/0/0 Lore% 9 Gallery% 23 Achievement% 15 Wizard Run 0 Options --------- Layout 0 ASCII 0 Keyboard 1 Movement Numpad Keybinds 0 Fullscreen 1 Font 18/SmallcapsGlow Map View 76x50 Zoom Use 0% Tactical HUD 1 Map Filters NONE Filters NONE Steam 1 RUN: c0a24b06-b3fc-4aa4-a8e1-c576edb4ea30